Department family,Entity,Date,Expense type,Expense area,Supplier,Transaction number,Amount
HMRC,HMRC,01/07/2010,Marketing Promotion,Communications & Marketing,COI - COI Trading Fund/GNN,5100028355,227213.21
HMRC,HMRC,01/07/2010,100 PS Service Charg,Estates & Support Services,Exchequer Partnership Plc,5100029942,2048095.78
HMRC,HMRC,01/07/2010,TNT Documented Servi,Commercial Directorate,TNT UK Limited,5100029947,884010.76
HMRC,HMRC,01/07/2010,STEPS FUP,Estates & Support Services,Mapeley Steps Limited,5100029953,18018742.36
HMRC,HMRC,01/07/2010,Buildng insp service,Estates & Support Services,Mapeley Steps Limited,5100030032,82661.97
HMRC,HMRC,02/07/2010,Radio Infrastructure,Commercial Directorate,British Telecommunications plc.,5100030053,30567.62
HMRC,HMRC,02/07/2010,Dept forms Stock,Commercial Directorate,Banner Business Services Ltd,5100030173,232086
HMRC,HMRC,02/07/2010,Business Consultancy,PAYE SA & NICs,QI Consulting,5100030308,27229.8
HMRC,HMRC,02/07/2010,Court Fees,Debt Management & Banking,The Insolvency Service,5100030332,242960
HMRC,HMRC,02/07/2010,Business Consultancy,Permanent Secretary for Tax Directorates,Corven Consulting Ltd,5100030420,54686.85
HMRC,HMRC,02/07/2010,Storage (non enfmnt),Estates & Support Services,Serco Integrated Services,5100030449,32842.05
HMRC,HMRC,02/07/2010,Maj AW non-struc VAT,Estates & Support Services,Mapeley Steps Limited,5100030462,70229.25
HMRC,HMRC,05/07/2010,Business Consultancy,People Function,MacLellan International Limited,5100030503,11622.46
HMRC,HMRC,05/07/2010,Temp clerical/admin,Large Business Service,MacLellan International Limited,5100030503,8490.96
HMRC,HMRC,05/07/2010,Temp clerical/admin,Specialist Investigations (SI),MacLellan International Limited,5100030503,5660.63
HMRC,HMRC,05/07/2010,Temp clerical/admin,Charities Assets & Residence,MacLellan International Limited,5100030503,5094.58
HMRC,HMRC,05/07/2010,Business Consultancy,Charities Assets & Residence,MacLellan International Limited,5100030503,4482.14
HMRC,HMRC,05/07/2010,Business Consultancy,Customer Operations PSA & NICEO,MacLellan International Limited,5100030503,3131.5
HMRC,HMRC,05/07/2010,Business Consultancy,Customer Operations PSA & NICEO,MacLellan International Limited,5100030503,2892.66
HMRC,HMRC,05/07/2010,Temp clerical/admin,Central Compliance,MacLellan International Limited,5100030503,2830.32
HMRC,HMRC,05/07/2010,Business Consultancy,People Function,MacLellan International Limited,5100030504,8884.61
HMRC,HMRC,05/07/2010,Temp clerical/admin,Large Business Service,MacLellan International Limited,5100030504,8583.41
HMRC,HMRC,05/07/2010,Temp clerical/admin,Specialist Investigations (SI),MacLellan International Limited,5100030504,5150.05
HMRC,HMRC,05/07/2010,Temp clerical/admin,Charities Assets & Residence,MacLellan International Limited,5100030504,5150.05
HMRC,HMRC,05/07/2010,Business Consultancy,Charities Assets & Residence,MacLellan International Limited,5100030504,4529.61
HMRC,HMRC,05/07/2010,Business Consultancy,Customer Operations PSA & NICEO,MacLellan International Limited,5100030504,3162.32
HMRC,HMRC,05/07/2010,Business Consultancy,Customer Operations PSA & NICEO,MacLellan International Limited,5100030504,2923.48
HMRC,HMRC,05/07/2010,Temp clerical/admin,Central Compliance,MacLellan International Limited,5100030504,2861.14
HMRC,HMRC,05/07/2010,Gov Bank Serv Charge,Finance & Internal Audit,RBS - Natwest,5100030807,555177.21
HMRC,HMRC,05/07/2010,Gov Bank Serv Charge,Finance & Internal Audit,RBS - Natwest,5100030807,747.89
HMRC,HMRC,05/07/2010,Non PFI serv VAT,Estates & Support Services,MacLellan International Limited,5100030849,51044.41
HMRC,HMRC,05/07/2010,County Court Proceed,Debt Management & Banking,Her Majesty's Court Service,5100030854,76445
HMRC,HMRC,05/07/2010,Non PFI serv VAT,Estates & Support Services,MacLellan International Limited,5100030864,51044.41
HMRC,HMRC,05/07/2010,OGD costs,Estates & Support Services,Department of Finance & Personnel,5100030865,99652.9
HMRC,HMRC,05/07/2010,Business Consultancy,Estates & Support Services,Jacobs Engineering (UK) Ltd,5100030888,66296.16
HMRC,HMRC,05/07/2010,Govt dept services,Finance & Internal Audit,Paymaster (1836) Limited,5100030914,32574.39
HMRC,HMRC,06/07/2010,Vehicle leasing,Commercial Directorate,Inchcape Fleet Solutions,5100031024,88687.45
HMRC,HMRC,06/07/2010,Vehicle leasing,Commercial Directorate,Inchcape Fleet Solutions,5100031025,42494.26
HMRC,HMRC,06/07/2010,Vehicle servicing ma,Commercial Directorate,Inchcape Fleet Solutions,5100031028,58540
HMRC,HMRC,06/07/2010,Vehicle servicing ma,Commercial Directorate,Inchcape Fleet Solutions,5100031034,103386.58
HMRC,HMRC,06/07/2010,Forensic Services,Criminal Investigations,CCL Forensics Limited,5100031115,139232.49
HMRC,HMRC,06/07/2010,Desks,Estates & Support Services,TBS (South Wales) Ltd T/A Triumph,5100031128,8670.8
HMRC,HMRC,06/07/2010,Pedestals,Estates & Support Services,TBS (South Wales) Ltd T/A Triumph,5100031128,5912.61
HMRC,HMRC,06/07/2010,Chairs,Estates & Support Services,TBS (South Wales) Ltd T/A Triumph,5100031128,5150.03
HMRC,HMRC,06/07/2010,Cabinets,Estates & Support Services,TBS (South Wales) Ltd T/A Triumph,5100031128,4422.14
HMRC,HMRC,06/07/2010,Furniture Accessorie,Estates & Support Services,TBS (South Wales) Ltd T/A Triumph,5100031128,2478.08
HMRC,HMRC,06/07/2010,Furniture Accessorie,Estates & Support Services,TBS (South Wales) Ltd T/A Triumph,5100031128,1604.23
HMRC,HMRC,06/07/2010,Desks,Estates & Support Services,TBS (South Wales) Ltd T/A Triumph,5100031128,1170.3
HMRC,HMRC,06/07/2010,Cabinets,Estates & Support Services,TBS (South Wales) Ltd T/A Triumph,5100031128,733.2
HMRC,HMRC,06/07/2010,Furniture Accessorie,Estates & Support Services,TBS (South Wales) Ltd T/A Triumph,5100031128,704.3
HMRC,HMRC,06/07/2010,Chairs,Estates & Support Services,TBS (South Wales) Ltd T/A Triumph,5100031128,412.42
HMRC,HMRC,06/07/2010,Furniture Accessorie,Estates & Support Services,TBS (South Wales) Ltd T/A Triumph,5100031128,270.25
HMRC,HMRC,06/07/2010,Furniture Accessorie,Estates & Support Services,TBS (South Wales) Ltd T/A Triumph,5100031128,173.9
HMRC,HMRC,06/07/2010,Furniture Accessorie,Estates & Support Services,TBS (South Wales) Ltd T/A Triumph,5100031128,98.7
HMRC,HMRC,06/07/2010,Translation services,Estates & Support Services,K International,5100031132,29821.19
HMRC,HMRC,07/07/2010,Specialty envelopes,Commercial Directorate,Banner Business Services Ltd,5100031264,26765.47
HMRC,HMRC,07/07/2010,Marketing Promotion,Communications & Marketing,COI - COI Trading Fund/GNN,5100031531,42591.06
HMRC,HMRC,08/07/2010,Oth PFI unitary chrg,Estates & Support Services,Haymarket SPV Ltd,5100031688,160324.36
HMRC,HMRC,08/07/2010,Oth PFI unitary chrg,Estates & Support Services,Cochrane Square S P V LTD,5100031690,163834.57
HMRC,HMRC,08/07/2010,Oth PFI unitary chrg,Estates & Support Services,LR (Manchester) Limited,5100031691,827769.19
HMRC,HMRC,08/07/2010,Oth PFI unitary chrg,Estates & Support Services,LR Stockport Ltd,5100031694,163744.09
HMRC,HMRC,08/07/2010,Reference books,Central Policy,LexisNexis Butterworths,5100031716,70315.98
HMRC,HMRC,08/07/2010,Legal Service Sol's,Specialist Investigations (SI),Howes Percival Solicitors,5100031856,35189.27
HMRC,HMRC,08/07/2010,Legal Serv's Credit,Specialist Investigations (SI),Howes Percival Solicitors,5100031856,8431.24
HMRC,HMRC,08/07/2010,Legal Service Sol's,Specialist Investigations (SI),Howes Percival Solicitors,5100031859,164271.62
HMRC,HMRC,08/07/2010,Legal Serv's Credit,Specialist Investigations (SI),Howes Percival Solicitors,5100031859,30061.11
HMRC,HMRC,08/07/2010,Marketing Promotion,Communications & Marketing,COI - COI Trading Fund/GNN,5100031877,53832.27
HMRC,HMRC,08/07/2010,Business Consultancy,Estates & Support Services,PricewaterhouseCoopers LLP,5100031909,237123.23
HMRC,HMRC,08/07/2010,Rent,Estates & Support Services,BTW Shiells,5100031913,69295.63
HMRC,HMRC,08/07/2010,Landlord Charges,Estates & Support Services,BTW Shiells,5100031913,14273.9
HMRC,HMRC,08/07/2010,Storage (non enfmnt),Estates & Support Services,Iron Mountain (UK) Limitedding Ltd,5100031915,114100.17
HMRC,HMRC,08/07/2010,Project admin/plan,Excise Customs Stamps & Money,BemroseBooth Ltd,5100031987,25045.13
HMRC,HMRC,08/07/2010,Marketing Promotion,Communications & Marketing,COI - COI Trading Fund/GNN,5100032000,126627.61
HMRC,HMRC,08/07/2010,Depart Booklet Stk,Estates & Support Services,St Ives Direct,5100032128,16673.36
HMRC,HMRC,08/07/2010,Dept forms Stock,Estates & Support Services,St Ives Direct,5100032128,12672
HMRC,HMRC,08/07/2010,Dept forms Stock,Estates & Support Services,St Ives Direct,5100032128,6698
HMRC,HMRC,08/07/2010,Dept forms Stock,Estates & Support Services,St Ives Direct,5100032128,3115.35
HMRC,HMRC,08/07/2010,Electricity,Estates & Support Services,Mapeley Steps Limited,5100032164,1215860.48
HMRC,HMRC,08/07/2010,Gas,Estates & Support Services,Mapeley Steps Limited,5100032164,299329.21
HMRC,HMRC,08/07/2010,Water,Estates & Support Services,Mapeley Steps Limited,5100032164,252513.26
HMRC,HMRC,08/07/2010,Electricity,Estates & Support Services,Mapeley Steps Limited,5100032164,140913.31
HMRC,HMRC,08/07/2010,Gas,Estates & Support Services,Mapeley Steps Limited,5100032164,77354.18
HMRC,HMRC,08/07/2010,Oil,Estates & Support Services,Mapeley Steps Limited,5100032164,28114.2
HMRC,HMRC,08/07/2010,Water,Estates & Support Services,Mapeley Steps Limited,5100032164,20841.46
HMRC,HMRC,08/07/2010,Electricity,Estates & Support Services,Mapeley Steps Limited,5100032164,4748.55
HMRC,HMRC,08/07/2010,Oil,Estates & Support Services,Mapeley Steps Limited,5100032164,2014.88
HMRC,HMRC,08/07/2010,Gas,Estates & Support Services,Mapeley Steps Limited,5100032164,93.37
HMRC,HMRC,08/07/2010,Oth PFI unitary chrg,Estates & Support Services,Newcastle Estate Partnership,5100032246,3483474.39
HMRC,HMRC,08/07/2010,Business Rates,Estates & Support Services,City of Edinburgh Council - 3900401,5100119414,27645
HMRC,HMRC,08/07/2010,Business Rates,Estates & Support Services,City of Edinburgh Council - 3900401,5100119420,29100
HMRC,HMRC,08/07/2010,Business Rates,Estates & Support Services,City of Edinburgh Council - 3900401,5100119423,37248
HMRC,HMRC,08/07/2010,Business Rates,Estates & Support Services,City of Edinburgh Council - 3900401,5100119426,47530
HMRC,HMRC,08/07/2010,Business Rates,Estates & Support Services,City of Edinburgh Council - 3900401,5100131134,47530
HMRC,HMRC,08/07/2010,Business Rates,Estates & Support Services,City of Edinburgh Council - 3900401,5100131136,37248
HMRC,HMRC,08/07/2010,Business Rates,Estates & Support Services,City of Edinburgh Council - 3900401,5100131138,29100
HMRC,HMRC,08/07/2010,Business Rates,Estates & Support Services,City of Edinburgh Council - 3900401,5100131140,27645
HMRC,HMRC,09/07/2010,Government Gateway,Customer Contact,DWP,5100031961,186157.99
HMRC,HMRC,09/07/2010,Marketing Promotion,Communications & Marketing,COI - COI Trading Fund/GNN,5100032001,770469.48
HMRC,HMRC,09/07/2010,Bank Charges CSH/CHQ,Finance & Internal Audit,Alliance and Leicester,5100032266,65957.07
HMRC,HMRC,09/07/2010,Bank Charges CSH/CHQ,Finance & Internal Audit,Alliance and Leicester,5100032273,273375.71
HMRC,HMRC,09/07/2010,Marketing Promotion,Communications & Marketing,COI - COI Trading Fund/GNN,5100032284,35250
HMRC,HMRC,09/07/2010,Data Purchases,Risk & Intelligence,National Policing Improvement Agenc,5100032313,39436.63
HMRC,HMRC,09/07/2010,Business Consultancy,Information Management Solutions,Parity Resourcing Ltd,5100032327,37171.13
HMRC,HMRC,09/07/2010,Business Consultancy,Information Management Solutions,Parity Resourcing Ltd,5100032328,39127.5
HMRC,HMRC,09/07/2010,Business Consultancy,People Function,Deloitte MCS Limited,5100032350,179070
HMRC,HMRC,09/07/2010,Business Consultancy,PAYE SA & NICs,Deloitte M C S Ltd,5100032354,658155.69
HMRC,HMRC,09/07/2010,Business Consultancy,PAYE SA & NICs,Deloitte M C S Ltd,5100032358,570630.09
HMRC,HMRC,09/07/2010,STEPS FUP,Estates & Support Services,Mapeley Steps Limited,5100032367,208554.08
HMRC,HMRC,09/07/2010,Business Rates,Estates & Support Services,City of Edinburgh Council - 3900401,5100119413,27645
HMRC,HMRC,09/07/2010,Business Rates,Estates & Support Services,City of Edinburgh Council - 3900401,5100119419,29100
HMRC,HMRC,09/07/2010,Business Rates,Estates & Support Services,City of Edinburgh Council - 3900401,5100119422,37248
HMRC,HMRC,09/07/2010,Business Rates,Estates & Support Services,City of Edinburgh Council - 3900401,5100119425,47530
HMRC,HMRC,12/07/2010,Court Fees,Debt Management & Banking,Natwest Sols 83639635,1900085851,40000
HMRC,HMRC,12/07/2010,Telephones - Landlines,Information Management Solutions,Cable & Wireless,5100013960,-79939.95
HMRC,HMRC,12/07/2010,Phones - landlines,Information Management Solutions,Cable & Wireless,5100032562,80962.2
HMRC,HMRC,12/07/2010,Phones - landlines,Information Management Solutions,Cable & Wireless,5100032563,159879.9
HMRC,HMRC,12/07/2010,Telephones - Landlines,Information Management Solutions,Cable & Wireless,5100032594,-80962.2
HMRC,HMRC,12/07/2010,Business Consultancy,Knowledge Analysis & Intelligence,CapGemini UK Plc - PeoplePoint,5100032601,123375
HMRC,HMRC,12/07/2010,Mail and Fulfilment,Business Customer Unit,BSS Scotland Ltd,5100032731,58449.28
HMRC,HMRC,12/07/2010,TNT Documented Servi,Commercial Directorate,TNT UK Limited,5100032756,894105.63
HMRC,HMRC,12/07/2010,Hardware maintenance,Information Management Solutions,CapGemini UK Plc - PeoplePoint,5100032758,1046008.97
HMRC,HMRC,12/07/2010,Business Consultancy,People Function,Deloitte M C S Ltd,5100032779,99640
HMRC,HMRC,12/07/2010,Business Consultancy,People Function,Deloitte M C S Ltd,5100032780,135360
HMRC,HMRC,12/07/2010,Diesel fuel,Commercial Directorate,Arval PHH Business Solutions Ltd,5100032782,38624.7
HMRC,HMRC,12/07/2010,Diesel fuel,Commercial Directorate,Arval PHH Business Solutions Ltd,5100032783,61587.98
HMRC,HMRC,13/07/2010,Research (VAT rec),Knowledge Analysis & Intelligence,ORC INTERNATIONAL LTD,5100032949,49346.48
HMRC,HMRC,13/07/2010,Prof bodies subs,Knowledge Analysis & Intelligence,Copyright Licensing Agency,5100032950,131228.03
HMRC,HMRC,13/07/2010,Govt dept services,Finance & Internal Audit,Global Crossing,5100032951,65271.25
HMRC,HMRC,13/07/2010,STEPS VAT Indemnity,Estates & Support Services,Mapeley Steps Limited,5100033122,4155431.36
HMRC,HMRC,14/07/2010,Govt dept services,Finance & Internal Audit,Paymaster (1836) Limited,5100032801,487825
HMRC,HMRC,14/07/2010,Subscriptions to Pub,Knowledge Analysis & Intelligence,Copyright Licensing Agency,5100033120,135121.36
HMRC,HMRC,14/07/2010,Govt dept services,Finance & Internal Audit,Xafinity Paymaster (1836) Ltd,5100033125,487625
HMRC,HMRC,14/07/2010,Phones - landlines,Information Management Solutions,Cable & Wireless,5100033338,141560.33
HMRC,HMRC,14/07/2010,Seized Goods Cont,Specialist Investigations (SI),Veolia Environmental Services Plc,5100033378,69439.34
HMRC,HMRC,14/07/2010,Business Consultancy,People Function,COI Communications,5100033399,66211.25
HMRC,HMRC,14/07/2010,Subscriptions to Pub,Business International,One Source Information Services Ltd,5100033416,27362.81
HMRC,HMRC,14/07/2010,Subscriptions to Pub,Large Business Service,One Source Information Services Ltd,5100033416,11750
HMRC,HMRC,14/07/2010,Subscriptions to Pub,Large Business Service,One Source Information Services Ltd,5100033416,2350
HMRC,HMRC,14/07/2010,Subscriptions to Pub,Large Business Service,One Source Information Services Ltd,5100033416,2350
HMRC,HMRC,14/07/2010,Subscriptions to Pub,Large Business Service,One Source Information Services Ltd,5100033416,1395.31
HMRC,HMRC,14/07/2010,Postal delivery serv,Commercial Directorate,Royal Mail,5100033502,3661267.83
HMRC,HMRC,14/07/2010,Valuation Services,Risk & Intelligence,Valuation Office Agency,5100033705,878085
HMRC,HMRC,15/07/2010,Employee education,People Function,Eliesha Training Limited,5100033472,28055.05
HMRC,HMRC,15/07/2010,Research (VAT rec),Knowledge Analysis & Intelligence,TNS-BMRB,5100033504,48621.79
HMRC,HMRC,15/07/2010,Samplng & Analytical,Specialist Investigations (SI),L G C Ltd,5100033506,68519.19
HMRC,HMRC,15/07/2010,Business Consultancy,Finance & Internal Audit,J. Winsley Ltd,5100033792,34980
HMRC,HMRC,15/07/2010,Dept forms Stock,Estates & Support Services,St Ives,5100033814,29184.65
HMRC,HMRC,15/07/2010,Bank Charges PO Card,Finance & Internal Audit,Post Office Limited,5100033831,1210831.12
HMRC,HMRC,15/07/2010,Electricity,Estates & Support Services,EDF Energy,5100033832,258749.46
HMRC,HMRC,15/07/2010,Electricity,Estates & Support Services,EDF Energy,5100033832,823.43
HMRC,HMRC,15/07/2010,Dept forms Stock,Estates & Support Services,St Ives Direct,5100033856,36520.13
HMRC,HMRC,15/07/2010,Maintenance fees,Information Management Solutions,Accenture (UK) Limited,5100033858,411250
HMRC,HMRC,15/07/2010,Temp clerical/admin,Specialist Investigations (SI),MacLellan International Limited,5100033875,9679.66
HMRC,HMRC,15/07/2010,Business Consultancy,People Function,MacLellan International Limited,5100033875,8884.61
HMRC,HMRC,15/07/2010,Temp clerical/admin,Large Business Service,MacLellan International Limited,5100033875,8583.41
HMRC,HMRC,15/07/2010,Temp clerical/admin,Charities Assets & Residence,MacLellan International Limited,5100033875,5150.05
HMRC,HMRC,15/07/2010,Business Consultancy,Customer Operations PSA & NICEO,MacLellan International Limited,5100033875,3162.33
HMRC,HMRC,15/07/2010,Business Consultancy,Customer Operations PSA & NICEO,MacLellan International Limited,5100033875,2923.48
HMRC,HMRC,15/07/2010,Temp clerical/admin,Central Compliance,MacLellan International Limited,5100033875,2861.14
HMRC,HMRC,15/07/2010,Mail delivery/pickup,Commercial Directorate,G3 Worldwide (UK) Ltd,5100033878,43644.98
HMRC,HMRC,15/07/2010,Mail delivery/pickup,Commercial Directorate,G3 Worldwide (UK) Ltd,5100033878,13092.36
HMRC,HMRC,16/07/2010,Business Rates,Estates & Support Services,WEST LOTHIAN COUNCIL,5100034049,32059.5
HMRC,HMRC,16/07/2010,Rent,Estates & Support Services,Windsor Life Assurance Co,5100034102,29574.75
HMRC,HMRC,16/07/2010,Rent,Estates & Support Services,Windsor Life Assurance Co,5100034107,27251.77
HMRC,HMRC,16/07/2010,Rent,Estates & Support Services,Windsor Life Assurance Co,5100034112,27043.8
HMRC,HMRC,16/07/2010,Court Fees,Debt Management & Banking,The Insolvency Service,5100034155,37555
HMRC,HMRC,16/07/2010,OHS,People Function,Capita Health Solutions Limited,5100034205,35171.04
HMRC,HMRC,16/07/2010,OHS,People Function,Capita Health Solutions Limited,5100034205,37.24
HMRC,HMRC,16/07/2010,OHS,People Function,Capita Health Solutions Limited,5100034208,148543.2
HMRC,HMRC,16/07/2010,Marketing Promotion,Communications & Marketing,COI - COI Trading Fund/GNN,5100034224,149071.79
HMRC,HMRC,16/07/2010,Crim Inv Specialist,Risk & Intelligence,Foreign and Commonwealth,5100034250,28905
HMRC,HMRC,16/07/2010,Govt dept services,Risk & Intelligence,Foreign and Commonwealth Office,5100034263,36450.17
HMRC,HMRC,16/07/2010,Govt dept services,Risk & Intelligence,Foreign and Commonwealth Office,5100034264,91873.57
HMRC,HMRC,19/07/2010,Samplng & Analytical,Specialist Investigations (SI),Oxford Instruments Analytical Ltd,5100031621,28623.34
HMRC,HMRC,19/07/2010,Samplng & Analytical,Specialist Investigations (SI),Oxford Instruments Analytical Ltd,5100031621,1400
HMRC,HMRC,19/07/2010,Samplng & Analytical,Specialist Investigations (SI),Oxford Instruments Analytical Ltd,5100031621,900
HMRC,HMRC,19/07/2010,Samplng & Analytical,Specialist Investigations (SI),Oxford Instruments Analytical Ltd,5100031621,160
HMRC,HMRC,19/07/2010,Non PFI serv VAT,Estates & Support Services,MacLellan International Limited,5100034508,435401.16
HMRC,HMRC,19/07/2010,Business Consultancy,Estates & Support Services,PricewaterhouseCoopers LLP,5100034512,53153.48
HMRC,HMRC,19/07/2010,Business Rates,Estates & Support Services,Huntingdonshire District Council,5100034513,39199.03
HMRC,HMRC,19/07/2010,Mgmt development,Customer Contact,CCA,5100034537,29375
HMRC,HMRC,19/07/2010,IT consultancy,Information Management Solutions,Accenture (UK) Limited,5100034545,37690.36
HMRC,HMRC,19/07/2010,IT consultancy,Information Management Solutions,Accenture (UK) Limited,5100034545,866.44
HMRC,HMRC,19/07/2010,Business Consultancy,Performance and Improvement,Fujitsu Services Ltd (Pacesetter),5100034546,26148.48
HMRC,HMRC,20/07/2010,Phones - landlines,Information Management Solutions,Cable & Wireless,5100034777,34579.93
HMRC,HMRC,20/07/2010,Business Consultancy,People Function,Deloitte M C S Ltd,5100034890,180480
HMRC,HMRC,20/07/2010,Business Consultancy,People Function,Deloitte M C S Ltd,5100034918,179070
HMRC,HMRC,20/07/2010,Software coding,Information Management Solutions,Detica Limited,5100035524,1175000
HMRC,HMRC,21/07/2010,Electricity,Estates & Support Services,British Gas Business,5100027474,-28735.1
HMRC,HMRC,21/07/2010,Electricity,Estates & Support Services,British Gas Business,5100027477,-38233.92
HMRC,HMRC,21/07/2010,Non PFI serv VAT,Estates & Support Services,MacLellan International Limited,5100034986,51044.41
HMRC,HMRC,21/07/2010,Business Consultancy,Finance & Internal Audit,KPMG LLP,5100034993,391987.64
HMRC,HMRC,21/07/2010,Govt dept services,Finance & Internal Audit,Global Crossing,5100034994,71087.5
HMRC,HMRC,21/07/2010,Forensic Services,Criminal Investigations,Forensic Science Service,5100035015,81890.52
HMRC,HMRC,21/07/2010,Electricity,Estates & Support Services,British Gas Business,5100035057,59242.85
HMRC,HMRC,21/07/2010,Interpretation,Customer Contact,Thebigword Interpreting Services Lt,5100035073,204332.96
HMRC,HMRC,21/07/2010,Interpretation,Customer Contact,Thebigword Interpreting Services Lt,5100035076,98179.22
HMRC,HMRC,21/07/2010,Interpretation,Customer Contact,Thebigword Interpreting Services Lt,5100035078,58353.92
HMRC,HMRC,21/07/2010,Interpretation,Customer Contact,Thebigword Interpreting Services Lt,5100035080,59157.47
HMRC,HMRC,21/07/2010,Interpretation,Customer Contact,Thebigword Interpreting Services Lt,5100035081,28660.71
HMRC,HMRC,21/07/2010,Interpretation,Customer Contact,Thebigword Interpreting Services Lt,5100035084,25662.66
HMRC,HMRC,21/07/2010,Crim Inv Specialist,Criminal Investigations,Wireless CCTV Ltd,5100035482,16907.47
HMRC,HMRC,21/07/2010,Crim Inv Specialist,Criminal Investigations,Wireless CCTV Ltd,5100035482,5079.62
HMRC,HMRC,21/07/2010,Crim Inv Specialist,Criminal Investigations,Wireless CCTV Ltd,5100035482,3137.25
HMRC,HMRC,21/07/2010,Crim Inv Specialist,Criminal Investigations,Wireless CCTV Ltd,5100035482,1645
HMRC,HMRC,21/07/2010,Crim Inv Specialist,Criminal Investigations,Wireless CCTV Ltd,5100035482,1551
HMRC,HMRC,21/07/2010,Crim Inv Specialist,Criminal Investigations,Wireless CCTV Ltd,5100035482,1057.5
HMRC,HMRC,21/07/2010,Software coding,Information Management Solutions,Detica Limited,5100035526,321429.48
HMRC,HMRC,21/07/2010,Software coding,Information Management Solutions,Detica Limited,5100035528,972318.38
HMRC,HMRC,21/07/2010,Business Consultancy,Performance and Improvement,Fujitsu Services Ltd (Pacesetter),5100035542,40273.79
HMRC,HMRC,21/07/2010,Project admin/plan,Charities Assets & Residence,Ministry Of Justice,5100035552,58095
HMRC,HMRC,21/07/2010,Govt dept services,People Function,National School Of Government,5100035753,1142796
HMRC,HMRC,22/07/2010,Court Fees,Debt Management & Banking,RBSG Central 10000607,1900091109,40000
HMRC,HMRC,22/07/2010,CHURN,Estates & Support Services,Exchequer Partnership Plc,5100025749,25245.37
HMRC,HMRC,22/07/2010,CHURN,Estates & Support Services,Exchequer Partnership Plc,5100035040,25245.37
HMRC,HMRC,22/07/2010,Diesel fuel,Commercial Directorate,Arval PHH Business Solutions Ltd,5100035600,37044.46
HMRC,HMRC,22/07/2010,Diesel fuel,Commercial Directorate,Arval PHH Business Solutions Ltd,5100035602,60641.46
HMRC,HMRC,22/07/2010,Storage Seized Goods,Specialist Investigations (SI),TNT UK Limited,5100035813,140938.17
HMRC,HMRC,22/07/2010,Business Consultancy,Performance and Improvement,Fujitsu Services Ltd (Pacesetter),5100035872,56471.02
HMRC,HMRC,22/07/2010,Gov Bank Serv Charge,Finance & Internal Audit,Citibank N.A.,5100035880,65745.5
HMRC,HMRC,22/07/2010,Business Consultancy,DTPO and SDD,OGC Account,5100035969,29081.25
HMRC,HMRC,22/07/2010,Business Rates,Estates & Support Services,West Lothian Council,5100035972,25180.5
HMRC,HMRC,22/07/2010,Dept forms Stock,Estates & Support Services,Paragon UK (Print) Ltd,5100036046,26354.66
HMRC,HMRC,22/07/2010,Crown Sol's Off NI,Debt Management & Banking,Crown Solicitors Office,5100036064,61718.83
HMRC,HMRC,22/07/2010,Crown Sol's Off NI,Debt Management & Banking,Crown Solicitors Office,5100036066,37733.5
HMRC,HMRC,22/07/2010,Legal Service Sol's,Solicitors Office,Howes Percival Solicitors,5100036076,46091.67
HMRC,HMRC,22/07/2010,Legal Service Sol's,Solicitors Office,Howes Percival Solicitors,5100036076,687.5
HMRC,HMRC,22/07/2010,IT Config Services,Information Management Solutions,Foreign and Commonwealth,5100036090,16605.1
HMRC,HMRC,22/07/2010,IT Config Services,Information Management Solutions,Foreign and Commonwealth,5100036090,14722.75
HMRC,HMRC,22/07/2010,IT Config Services,Information Management Solutions,Foreign and Commonwealth,5100036090,3364.03
HMRC,HMRC,22/07/2010,IT Config Services,Information Management Solutions,Foreign and Commonwealth,5100036090,3106.7
HMRC,HMRC,22/07/2010,Legal Service Sol's,Solicitors Office,Howes Percival Solicitors,5100036094,72432.49
HMRC,HMRC,22/07/2010,Legal Service Sol's,Solicitors Office,Howes Percival Solicitors,5100036094,3
HMRC,HMRC,23/07/2010,IT consultancy,Information Management Solutions,Amtec Consulting Plc,5100036107,117791.99
HMRC,HMRC,23/07/2010,Legal Service Sol's,Solicitors Office,Howes Percival Solicitors,5100036122,46064.71
HMRC,HMRC,23/07/2010,Legal Service Sol's,Solicitors Office,Howes Percival Solicitors,5100036243,123571.99
HMRC,HMRC,23/07/2010,Electricity,Estates & Support Services,EDF Energy,5100036290,273262.31
HMRC,HMRC,23/07/2010,Electricity,Estates & Support Services,EDF Energy,5100036290,322.59
HMRC,HMRC,23/07/2010,Gas,Estates & Support Services,Corona Energy,5100036338,30356.44
HMRC,HMRC,23/07/2010,Govt dept services,Risk & Intelligence,Foreign and Commonwealth Office,5100036353,122948.62
HMRC,HMRC,26/07/2010,STEPS Facility Payments (FUP) ,Estates & Support Services,Mapeley Steps Limited,1700044991,-115125.76
HMRC,HMRC,26/07/2010,STEPS Facility Payments (FUP) ,Estates & Support Services,Mapeley Steps Limited,1700044995,-81864.26
HMRC,HMRC,26/07/2010,STEPS Facility Payments (FUP) ,Estates & Support Services,Mapeley Steps Limited,1700044997,-66818.47
HMRC,HMRC,26/07/2010,STEPS Facility Payments (FUP) ,Estates & Support Services,Mapeley Steps Limited,1700044998,-46110.71
HMRC,HMRC,26/07/2010,STEPS Facility Payments (FUP) ,Estates & Support Services,Mapeley Steps Limited,1700049997,-70035.32
HMRC,HMRC,26/07/2010,STEPS Facility Payments (FUP) ,Estates & Support Services,Mapeley Steps Limited,1700050019,-67018.57
HMRC,HMRC,26/07/2010,Accom Rent,Estates & Support Services,NB Real Estate Property,1700050054,-122999.13
HMRC,HMRC,26/07/2010,Min AW non-struc VAT,Estates & Support Services,Mapeley Steps Limited,5100035013,80730.06
HMRC,HMRC,26/07/2010,Landlord Charges,Estates & Support Services,Mapeley Steps Limited,5100035019,24109.32
HMRC,HMRC,26/07/2010,Rent,Estates & Support Services,Mapeley Steps Limited,5100035019,19707.19
HMRC,HMRC,26/07/2010,Maj AW non-struc VAT,Estates & Support Services,Mapeley Steps Limited,5100036258,50631.97
HMRC,HMRC,26/07/2010,Maj AW struc non-VAT,Estates & Support Services,Mapeley Steps Limited,5100036271,90384.57
HMRC,HMRC,26/07/2010,Maj AW non-struc VAT,Estates & Support Services,Mapeley Steps Limited,5100036274,34702.96
HMRC,HMRC,26/07/2010,Legal Service Sol's,Solicitors Office,Howes Percival Solicitors,5100036384,84445.26
HMRC,HMRC,26/07/2010,Legal Service Sol's,Solicitors Office,Howes Percival Solicitors,5100036386,26114.07
HMRC,HMRC,26/07/2010,Legal Service Sol's,Solicitors Office,Howes Percival Solicitors,5100036386,13
HMRC,HMRC,26/07/2010,Marketing Promotion,Charities Assets & Residence,COI - COI Trading Fund/GNN,5100036409,29817.98
HMRC,HMRC,26/07/2010,Business Rates,Estates & Support Services,GVA Grimley LLP,5100036425,137528.13
HMRC,HMRC,26/07/2010,Employee education,People Function,Saville Consulting UK Ltd,5100036682,41441.08
HMRC,HMRC,26/07/2010,OGD costs,Estates & Support Services,Ordnance Survey,5100036815,245496.52
HMRC,HMRC,26/07/2010,Rent,Estates & Support Services,NB Real Estate Property,5100036824,229054.5
HMRC,HMRC,26/07/2010,Rent,Estates & Support Services,Mapeley Steps Limited,5100036825,54833.34
HMRC,HMRC,26/07/2010,Landlord Charges,Estates & Support Services,Mapeley Steps Limited,5100036825,52871.21
HMRC,HMRC,26/07/2010,Maj AW struc non-VAT,Estates & Support Services,Amaryllis Environmental,5100036827,28090.56
HMRC,HMRC,26/07/2010,Rent,Estates & Support Services,Mapeley Steps Limited,5100036829,39259.17
HMRC,HMRC,26/07/2010,Rent,Estates & Support Services,Mapeley Steps Limited,5100036830,84830.4
HMRC,HMRC,27/07/2010,Hardware maintenance,Information Management Solutions,Government Communications Bureau,5100036863,112500
HMRC,HMRC,27/07/2010,Hardware maintenance,Information Management Solutions,Government Communications Bureau,5100036863,4276.8
HMRC,HMRC,27/07/2010,Phones - landlines,Information Management Solutions,Cable & Wireless,5100037041,43116.99
HMRC,HMRC,27/07/2010,STEPS FUP VAT recvbl,Estates & Support Services,Mapeley Steps Limited,5100037087,403351.33
HMRC,HMRC,27/07/2010,Security services,Estates & Support Services,Mapeley Steps Limited,5100037087,209704.8
HMRC,HMRC,27/07/2010,Security services,Estates & Support Services,Mapeley Steps Limited,5100037088,77780.6
HMRC,HMRC,27/07/2010,Affinity Data Centre,Information Management Solutions,DWP,5100037155,20530.56
HMRC,HMRC,27/07/2010,Affinity Data Centre,Information Management Solutions,DWP,5100037155,20530.56
HMRC,HMRC,27/07/2010,Aff/Metro Supp Tel,Information Management Solutions,DWP,5100037155,3489.41
HMRC,HMRC,27/07/2010,Aff/Metro Supp Tel,Information Management Solutions,DWP,5100037155,615.78
HMRC,HMRC,27/07/2010,Forensic Services,Criminal Investigations,Forensic Science Service,5100037160,76300.96
HMRC,HMRC,27/07/2010,STEPS FUP,Estates & Support Services,Mapeley Steps Limited,5100037178,18172488.06
HMRC,HMRC,28/07/2010,Legal Service; Solicitors fees,Solicitors Office,Treasury Solicitors,1900094865,29374.99
HMRC,HMRC,28/07/2010,Legal Service Sol's,Solicitors Office,Howes Percival Solicitors,5100037265,93913.61
HMRC,HMRC,28/07/2010,Legal Service Sol's,Solicitors Office,Howes Percival Solicitors,5100037265,10.64
HMRC,HMRC,28/07/2010,Marketing Promotion,Communications & Marketing,COI - COI Trading Fund/GNN,5100037269,221222.94
HMRC,HMRC,28/07/2010,Legal Service Sol's,Solicitors Office,Howes Percival Solicitors,5100037277,31870.17
HMRC,HMRC,28/07/2010,Website Development,Business Customer Unit,Serco Assurance,5100037424,107899.6
HMRC,HMRC,28/07/2010,Website Development,Business Customer Unit,Serco Assurance,5100037425,317935.2
HMRC,HMRC,28/07/2010,Build/cont insurance,Estates & Support Services,NB Real Estate Property,5100037429,25345.9
HMRC,HMRC,28/07/2010,Document destruction,Estates & Support Services,Banner Business Services Ltd,5100037432,120825.98
HMRC,HMRC,28/07/2010,Document destruction,Estates & Support Services,Banner Business Services Ltd,5100037433,28313.95
HMRC,HMRC,28/07/2010,Prof membership,Knowledge Analysis & Intelligence,HM Treasury,5100037465,31387.78
HMRC,HMRC,28/07/2010,Govt finance service,Finance & Internal Audit,PricewaterhouseCoopers LLP,5100037488,25952.23
HMRC,HMRC,28/07/2010,Website Development,Business Customer Unit,Serco Assurance,5100037522,3479372.38
HMRC,HMRC,28/07/2010,Business Consultancy,Performance and Improvement,Fujitsu Services Ltd (Pacesetter),5100037528,30039.54
HMRC,HMRC,28/07/2010,Business Consultancy,Finance & Internal Audit,Deloitte M C S Ltd,5100037575,209992.48
HMRC,HMRC,29/07/2010,Marketing Promotion,Charities Assets & Residence,COI - COI Trading Fund/GNN,5100037872,121214.18
HMRC,HMRC,29/07/2010,Marketing Promotion,Charities Assets & Residence,COI - COI Trading Fund/GNN,5100037873,29624.69
HMRC,HMRC,29/07/2010,Business Rates,Estates & Support Services,Borough of Telford & Wrekin,5100037940,54889
HMRC,HMRC,29/07/2010,Business Rates,Estates & Support Services,Salford City Council,5100037945,50975
HMRC,HMRC,29/07/2010,Business Rates,Estates & Support Services,Salford City Council,5100037947,145513
HMRC,HMRC,29/07/2010,Business Rates,Estates & Support Services,Portsmouth City Council,5100037950,25270
HMRC,HMRC,29/07/2010,Business Rates,Estates & Support Services,Birmingham City Council,5100037974,55134
HMRC,HMRC,29/07/2010,Business Rates,Estates & Support Services,Bournemouth Borough Council,5100037982,37219
HMRC,HMRC,29/07/2010,Business Rates,Estates & Support Services,Bradford Council,5100037987,33380
HMRC,HMRC,29/07/2010,Business Rates,Estates & Support Services,Bradford Council,5100037988,48635
HMRC,HMRC,29/07/2010,Business Rates,Estates & Support Services,Nottingham City Council,5100037992,134173
HMRC,HMRC,29/07/2010,Business Rates,Estates & Support Services,Bristol City Council,5100038003,31464
HMRC,HMRC,29/07/2010,Business Rates,Estates & Support Services,Cardiff County Council,5100038011,86299
HMRC,HMRC,29/07/2010,Business Rates,Estates & Support Services,Sefton Mbc,5100038043,38625
HMRC,HMRC,29/07/2010,Business Rates,Estates & Support Services,Sefton Mbc,5100038045,37021
HMRC,HMRC,29/07/2010,Business Rates,Estates & Support Services,Sheffield City Council,5100038048,35823
HMRC,HMRC,29/07/2010,Business Rates,Estates & Support Services,City of  Westminster,5100038064,37712
HMRC,HMRC,29/07/2010,Business Rates,Estates & Support Services,City of  Westminster,5100038065,73066
HMRC,HMRC,29/07/2010,Business Rates,Estates & Support Services,City of  Westminster,5100038066,94535
HMRC,HMRC,29/07/2010,Business Rates,Estates & Support Services,City of  Westminster,5100038067,100842
HMRC,HMRC,29/07/2010,Business Rates,Estates & Support Services,Coventry City Council,5100038071,52433
HMRC,HMRC,29/07/2010,Business Rates,Estates & Support Services,Croydon Council,5100038075,57325
HMRC,HMRC,29/07/2010,Business Rates,Estates & Support Services,South Lanarkshire Council,5100038083,89010
HMRC,HMRC,29/07/2010,Business Rates,Estates & Support Services,South Lanarkshire Council,5100038084,27903.6
HMRC,HMRC,29/07/2010,Business Rates,Estates & Support Services,Southend Borough Council,5100038088,54250
HMRC,HMRC,29/07/2010,Business Rates,Estates & Support Services,Sunderland City Council,5100038110,75399
HMRC,HMRC,29/07/2010,Business Rates,Estates & Support Services,Dundee City Council,5100038118,29932
HMRC,HMRC,29/07/2010,Business Rates,Estates & Support Services,Glasgow City Council,5100038133,35190
HMRC,HMRC,29/07/2010,Business Rates,Estates & Support Services,Glasgow City Council,5100038134,28980
HMRC,HMRC,29/07/2010,Business Rates,Estates & Support Services,Liverpool City Council,5100038179,99360
HMRC,HMRC,29/07/2010,Business Rates,Estates & Support Services,Liverpool City Council,5100038180,32085
HMRC,HMRC,29/07/2010,Business Rates,Estates & Support Services,Liverpool City Council,5100038181,45954
HMRC,HMRC,29/07/2010,Business Rates,Estates & Support Services,London Borough of Camden,5100038190,200930
HMRC,HMRC,29/07/2010,Business Rates,Estates & Support Services,West Lindsey District Council,5100038193,27531
HMRC,HMRC,29/07/2010,Business Rates,Estates & Support Services,West Lothian Council,5100038197,39703
HMRC,HMRC,29/07/2010,Business Rates,Estates & Support Services,Manchester City Council,5100038211,48142.01
HMRC,HMRC,29/07/2010,Business Rates,Estates & Support Services,Woking Borough  Council,5100038213,43846
HMRC,HMRC,29/07/2010,Business Rates,Estates & Support Services,Worthing Borough Council,5100038222,56937
HMRC,HMRC,29/07/2010,Business Rates,Estates & Support Services,Worthing Borough Council,5100038223,28949
HMRC,HMRC,29/07/2010,Business Rates,Estates & Support Services,Newcastle City Council,5100038235,332122
HMRC,HMRC,29/07/2010,Business Rates,Estates & Support Services,North Lanarkshire Council,5100038246,61893
HMRC,HMRC,29/07/2010,Business Rates,Estates & Support Services,City Of London,5100038259,77547
HMRC,HMRC,29/07/2010,Business Rates,Estates & Support Services,City Of London,5100038260,46392
HMRC,HMRC,29/07/2010,Business Rates,Estates & Support Services,Leeds City Council,5100038272,36225
HMRC,HMRC,29/07/2010,Business Rates,Estates & Support Services,Council Of The Borough,5100038278,31472
HMRC,HMRC,29/07/2010,Business Rates,Estates & Support Services,City Of Edinburgh Council,5100038310,26620
HMRC,HMRC,29/07/2010,Business Rates,Estates & Support Services,City Of Edinburgh Council,5100038311,32872
HMRC,HMRC,29/07/2010,Business Rates,Estates & Support Services,Royal Borough Of Kensington &,5100038314,155032
HMRC,HMRC,29/07/2010,Business Rates,Estates & Support Services,London Borough of Southwark,5100038320,72314
HMRC,HMRC,29/07/2010,Business Rates,Estates & Support Services,London Borough of Southwark,5100038321,209398
HMRC,HMRC,30/07/2010,Court Fees,Debt Management & Banking,Natwest Sols 83639635,1900095192,40000
HMRC,HMRC,30/07/2010,Management Consultancy,Customer Contact,Hays Specialist Recruitment Ltd,5100000155,-26359.74
HMRC,HMRC,30/07/2010,Management Consultancy,Customer Contact,Hays Specialist Recruitment Ltd,5100000216,-42495.79
HMRC,HMRC,30/07/2010,Marketing Promotion,Communications & Marketing,COI - COI Trading Fund/GNN,5100038580,126611.74
HMRC,HMRC,30/07/2010,Court Fees,Debt Management & Banking,The Insolvency Service,5100038584,203665
HMRC,HMRC,30/07/2010,Phones - landlines,Information Management Solutions,OGC Buying Solutions,5100038667,5540939.67
HMRC,HMRC,12/07/2010,Phones - landlines,Information Management Solutions,Cable & Wireless,5100032781,"-80,962.20"
